[Event "AUT-ch Open 2020"]
[Site "Graz"]
[Date "2020.02.20"]
[Round "8.21"]
[White "Megalios, Konstantinos"]
[Black "Mis, Mieszko"]
[Result "1-0"]
[ECO "E04"]
[WhiteElo "2334"]
[BlackElo "2390"]
[Annotator "NA"]
[PlyCount "55"]
[EventDate "2020.02.14"]
[EventType "swiss"]
[EventCountry "AUT"]
[SourceTitle "playchess.com"]
[Source "ChessBase"]
[SourceQuality "1"]
[TimeControl "40/5400+30:1800+30"]

1. Nf3 {[%emt 0:00:31]} Nf6 {[%emt 0:00:00]} 2. c4 {[%emt 0:00:09]} e6 {[%emt 0:00:25]} 3. g3 {[%emt 0:00:23]} d5 {[%emt 0:00:13]} 4. d4 {[%emt 0:02:28]} dxc4 {[%emt 0:00:13]} 5. Bg2 {[%emt 0:00:08]} Bb4+ {[%emt 0:00:12]} 6. Bd2 {[%emt 0:01:55]} c5 {[%emt 0:00:22]} 7. Bxb4 {[%emt 0:03:26]} cxb4 {[%emt 0:00:03]} 8. Ne5 {[%emt 0:01:09]} O-O {[%emt 0:00:43]} 9. O-O {[%emt 0:06:35]} Nc6 {[%emt 0:04:04]} 10. Bxc6 {[%emt 0:08:42]} bxc6 {[%emt 0:00:20]} 11. a3 {[%emt 0:00:06]} c5 {[%emt 0:17:51]} 12. dxc5 {[%emt 0:04:21]} Qd5 {[%emt 0:01:13]} 13. Qxd5 {[%emt 0:02:28]} exd5 {[%emt 0:04:42]} 14. axb4 {[%emt 0:02:15]} Re8 {[%emt 0:10:18]} 15. f4 {[%emt 0:05:03]} Ng4 {[%emt 0:07:56]} 16. Nc3 {[%emt 0:07:35]} Nxe5 {[%emt 0:10:53]} 17. fxe5 {[%emt 0:02:24]} Rb8 {[%emt 0:09:02]} 18. Rxa7 {[%emt 0:06:21]} Be6 {[%emt 0:03:03]} 19. b5 {[%emt 0:02:57]} d4 {[%emt 0:05:36]} 20. Ne4 {[%emt 0:00:39]} Bd5 {[%emt 0:03:52]} 21. Nd6 {[%emt 0:01:04]} Rxe5 {[%emt 0:00:17]} 22. e4 {[%emt 0:10:39]} Be6 {[%emt 0:10:26]} 23. c6 {[%emt 0:01:25]} Rc5 {[%emt 0:00:42]} 24. c7 {[%emt 0:01:42]} Rf8 {[%emt 0:00:16]} 25. b6 {[%emt 0:01:36]} d3 {[%emt 0:01:43]} 26. Rd1 {[%emt 0:02:49]} Rc6 {[%emt 0:01:30]} 27. b7 {[%emt 0:01:15]} Rxc7 {[%emt 0:00:41]} 28. Ra8 {[%emt 0:00:55]} 1-0

[Event "AUT-ch Open 2020"]
[Site "Graz"]
[Date "2020.02.20"]
[Round "8.21"]
[White "Praczukowski, Stanislaw"]
[Black "Modler, Andreas"]
[Result "1-0"]
[ECO "B43"]
[WhiteElo "2088"]
[BlackElo "2225"]
[Annotator "NA"]
[PlyCount "47"]
[EventDate "2020.02.14"]
[EventType "swiss"]
[EventCountry "AUT"]
[SourceTitle "playchess.com"]
[Source "ChessBase"]
[SourceQuality "1"]
[TimeControl "40/5400+30:1800+30"]

1. e4 {[%emt 0:00:00]} c5 {[%emt 0:00:00]} 2. Nf3 {[%emt 0:00:00]} e6 {[%emt 0:00:03]} 3. d4 {[%emt 0:00:09]} cxd4 {[%emt 0:00:16]} 4. Nxd4 {[%emt 0:00:07]} a6 {[%emt 0:00:04]} 5. Be2 {[%emt 0:00:38]} Nf6 {[%emt 0:01:22]} 6. Nc3 {[%emt 0:00:51]} Qc7 {[%emt 0:00:07]} 7. O-O {[%emt 0:00:30]} Bb4 {[%emt 0:01:48]} 8. Qd3 {[%emt 0:00:44]} Nc6 {[%emt 0:00:50]} 9. Bg5 {[%emt 0:01:10]} Be7 {[%emt 0:00:08]} 10. Bh4 {[%emt 0:06:55]} O-O {[%emt 0:02:43]} 11. Rad1 {[%emt 0:01:50]} Ne5 {[%emt 0:03:30]} 12. Qg3 {[%emt 0:05:33]} d6 {[%emt 1:25:09]} 13. f4 {[%emt 0:07:14]} Ng6 {[%emt 0:00:00]} 14. Bg5 {[%emt 0:02:14]} h6 {[%emt 0:00:00]} 15. Bxh6 {[%emt 0:12:33]} gxh6 {[%emt 0:00:00]} 16. f5 {[%emt 0:00:08]} e5 {[%emt 0:00:00]} 17. fxg6 {[%emt 0:16:57]} exd4 {[%emt 0:00:00]} 18. gxf7+ {[%emt 0:02:57]} Kh8 {[%emt 0:00:00]} 19. Nd5 {[%emt 0:08:27]} Nxd5 {[%emt 0:00:00]} 20. Qg6 {[%emt 0:01:06]} Bg5 {[%emt 0:00:00]} 21. exd5 {[%emt 0:00:27]} Bf5 {[%emt 0:00:00]} 22. Qxf5 {[%emt 0:02:44]} Kg7 {[%emt 0:00:00]} 23. Bd3 {[%emt 0:00:39]} Rh8 {[%emt 0:00:00]} 24. f8=Q+ {[%emt 0:00:29]} 1-0

[Event "AUT-ch Open 2020"]
[Site "Graz"]
[Date "2020.02.20"]
[Round "8.25"]
[White "Molnar, Bela"]
[Black "Stanec, Nikolaus"]
[Result "0-1"]
[ECO "B67"]
[WhiteElo "2312"]
[BlackElo "2520"]
[Annotator "ChessBase"]
[PlyCount "62"]
[EventDate "2020.02.14"]
[EventType "swiss"]
[EventCountry "AUT"]
[SourceTitle "playchess.com"]
[Source "ChessBase"]
[SourceQuality "1"]
[TimeControl "40/5400+30:1800+30"]

1. e4 {[%emt 0:00:00]} c5 {[%emt 0:00:38]} 2. Nf3 {[%emt 0:00:00]} Nc6 {[%emt 0:00:09]} 3. d4 {[%emt 0:00:00]} cxd4 4. Nxd4 Nf6 {[%emt 0:00:52]} 5. Nc3 {[%emt 0:00:37]} d6 {[%emt 0:00:04]} 6. Bg5 {[%emt 0:00:45]} e6 {[%emt 0:00:07]} 7. Qd2 {[%emt 0:00:53]} a6 {[%emt 0:00:08]} 8. O-O-O {[%emt 0:01:01]} Bd7 {[%emt 0:00:07]} 9. Kb1 {[%emt 0:00:27]} h6 {[%emt 0:01:15]} 10. Bxf6 {[%emt 0:02:31]} Qxf6 {[%emt 0:00:10]} 11. Nxc6 {[%emt 0:00:23]} Bxc6 {[%emt 0:04:08]} 12. h4 {[%emt 0:00:42]} Qd8 {[%emt 0:01:06]} 13. f4 {[%emt 0:08:52]} b5 {[%emt 0:00:58]} 14. Rh3 {[%emt 0:00:18]} Be7 {[%emt 0:02:34]} 15. Bd3 {[%emt 0:05:06]} Bxh4 {[%emt 0:07:15]} 16. Qe3 {[%emt 0:00:38]} Be7 {[%emt 0:02:04]} 17. Qg3 {[%emt 0:08:42]} g5 {[%emt 0:15:09]} 18. fxg5 {[%emt 0:04:30]} Bxg5 {[%emt 0:00:07]} 19. Be2 {[%emt 0:00:24]} Qb6 {[%emt 0:20:01]} 20. Qxd6 {[%emt 0:11:32]} Rd8 {[%emt 0:01:06]} 21. Qe5 {[%emt 0:00:12]} Rxd1+ {[%emt 0:00:30]} 22. Nxd1 {[%emt 0:02:07]} O-O {[%emt 0:00:31]} 23. Rg3 {[%emt 0:01:33]} Rd8 {[%emt 0:01:59]} 24. Bd3 {[%emt 0:00:20]} Kf8 {[%emt 0:08:26]} 25. Rf3 {[%emt 0:03:05]} Qg1 {[%emt 0:02:47]} 26. a3 {[%emt 0:05:12]} Qxd1+ {[%emt 0:00:47]} 27. Ka2 {[%emt 0:00:07]} Qg1 {[%emt 0:07:28]} 28. Qxe6 {[%emt 0:01:46]} Be8 {[%emt 0:00:52]} 29. Qxa6 {[%emt 0:03:19]} Qxg2 {[%emt 0:01:29]} 30. Rf5 {[%emt 0:00:16]} Bd7 {[%emt 0:01:34]} 31. Rc5 {[%emt 0:05:21]} Be6+ {[%emt 0:00:26]} 0-1

[Event "AUT-ch Open 2020"]
[Site "Graz"]
[Date "2020.02.20"]
[Round "8.27"]
[White "Milikow, Yoav"]
[Black "David, Alexandru-Vasile"]
[Result "1-0"]
[ECO "E32"]
[WhiteElo "2296"]
[BlackElo "2436"]
[Annotator "NA"]
[PlyCount "69"]
[EventDate "2020.02.14"]
[EventType "swiss"]
[EventCountry "AUT"]
[SourceTitle "playchess.com"]
[Source "ChessBase"]
[SourceQuality "1"]
[TimeControl "40/5400+30:1800+30"]

1. d4 {[%emt 0:00:00]} Nf6 {[%emt 0:00:00]} 2. c4 {[%emt 0:00:00]} e6 {[%emt 0:00:00]} 3. Nc3 {[%emt 0:00:00]} Bb4 4. Qc2 b6 {[%emt 0:00:06]} 5. e4 {[%emt 0:00:57]} c5 {[%emt 0:00:05]} 6. d5 {[%emt 0:00:46]} Qe7 {[%emt 0:00:18]} 7. Nge2 {[%emt 0:01:24]} exd5 {[%emt 0:00:21]} 8. exd5 {[%emt 0:00:13]} d6 {[%emt 0:00:06]} 9. Bd2 {[%emt 0:01:20]} O-O {[%emt 0:02:05]} 10. f3 {[%emt 0:05:47]} Ba6 {[%emt 0:04:13]} 11. O-O-O {[%emt 0:02:09]} Bxc4 {[%emt 0:03:55]} 12. Ng3 {[%emt 0:00:50]} Bxd5 {[%emt 0:01:03]} 13. Nf5 {[%emt 0:05:18]} Qd7 {[%emt 0:03:01]} 14. Nxd5 {[%emt 0:04:06]} Nxd5 {[%emt 0:01:01]} 15. Bg5 {[%emt 0:02:50]} Nc7 {[%emt 0:03:02]} 16. Rxd6 {[%emt 0:02:00]} Qe8 {[%emt 0:00:05]} 17. Ne7+ {[%emt 0:04:53]} Kh8 {[%emt 0:00:05]} 18. Rh6 {[%emt 0:01:28]} f5 {[%emt 0:00:05]} 19. Ng6+ {[%emt 0:00:56]} Qxg6 {[%emt 0:00:06]} 20. Rxg6 {[%emt 0:00:05]} hxg6 {[%emt 0:00:03]} 21. h4 {[%emt 0:01:49]} Nc6 {[%emt 0:00:34]} 22. h5 {[%emt 0:00:44]} Kh7 {[%emt 0:00:04]} 23. g4 {[%emt 0:04:30]} Ne6 {[%emt 0:03:17]} 24. hxg6+ {[%emt 0:02:28]} Kxg6 {[%emt 0:00:07]} 25. gxf5+ {[%emt 0:00:17]} Rxf5 {[%emt 0:06:05]} 26. Bh3 {[%emt 0:00:51]} Raf8 {[%emt 0:00:19]} 27. Bxf5+ {[%emt 0:06:52]} Rxf5 {[%emt 0:00:09]} 28. Qe4 {[%emt 0:03:32]} Ncd4 {[%emt 0:00:52]} 29. Be3 {[%emt 0:01:40]} Kf6 {[%emt 0:01:52]} 30. a3 {[%emt 0:04:41]} Nb3+ {[%emt 0:00:10]} 31. Kc2 {[%emt 0:01:04]} Ned4+ {[%emt 0:00:11]} 32. Bxd4+ {[%emt 0:01:11]} Nxd4+ {[%emt 0:00:09]} 33. Kd1 {[%emt 0:00:38]} Bxa3 {[%emt 0:03:08]} 34. bxa3 {[%emt 0:00:11]} Rxf3 {[%emt 0:00:05]} 35. Re1 {[%emt 0:00:53]} 1-0

[Event "AUT-ch Open 2020"]
[Site "Graz"]
[Date "2020.02.20"]
[Round "8.28"]
[White "Halvax, Georg"]
[Black "Godzwon, Iwo"]
[Result "1/2-1/2"]
[ECO "B46"]
[WhiteElo "2428"]
[BlackElo "2321"]
[Annotator "NA"]
[PlyCount "74"]
[EventDate "2020.02.14"]
[EventType "swiss"]
[EventCountry "AUT"]
[SourceTitle "playchess.com"]
[Source "ChessBase"]
[SourceQuality "1"]
[TimeControl "40/5400+30:1800+30"]

1. e4 {[%emt 0:00:00]} c5 {[%emt 0:00:00]} 2. Nf3 {[%emt 0:00:00]} e6 {[%emt 0:00:00]} 3. d4 {[%emt 0:00:00]} cxd4 {[%emt 0:00:00]} 4. Nxd4 {[%emt 0:00:08]} Nc6 {[%emt 0:00:00]} 5. Nc3 {[%emt 0:00:16]} a6 {[%emt 0:00:00]} 6. Be3 {[%emt 0:01:09]} Nf6 {[%emt 0:00:00]} 7. Qd2 {[%emt 0:00:44]} e5 {[%emt 0:00:00]} 8. Nf5 {[%emt 0:32:15]} d5 {[%emt 0:00:00]} 9. exd5 {[%emt 0:00:25]} Nb4 {[%emt 0:00:04]} 10. Ng3 {[%emt 0:05:03]} Nbxd5 {[%emt 0:04:13]} 11. Nxd5 {[%emt 0:00:20]} Qxd5 {[%emt 0:02:26]} 12. c4 {[%emt 0:04:23]} Qxd2+ {[%emt 0:02:47]} 13. Bxd2 {[%emt 0:00:14]} Be6 {[%emt 0:04:09]} 14. Bc3 {[%emt 0:03:34]} Bc5 {[%emt 0:00:58]} 15. f3 {[%emt 0:03:37]} O-O-O {[%emt 0:01:04]} 16. Be2 {[%emt 0:04:36]} Bd4 {[%emt 0:06:08]} 17. Bxd4 {[%emt 0:05:35]} Rxd4 {[%emt 0:00:05]} 18. Rd1 {[%emt 0:00:10]} Rhd8 {[%emt 0:00:56]} 19. Rxd4 {[%emt 0:00:36]} Rxd4 {[%emt 0:00:20]} 20. b3 {[%emt 0:00:34]} Kc7 {[%emt 0:03:10]} 21. Nf1 {[%emt 0:02:29]} Nd7 {[%emt 0:10:43]} 22. Nd2 {[%emt 0:07:31]} Nc5 {[%emt 0:00:24]} 23. Kd1 {[%emt 0:03:41]} Bf5 {[%emt 0:12:01]} 24. Kc1 {[%emt 0:01:32]} Bd3 {[%emt 0:00:28]} 25. Re1 {[%emt 0:01:58]} f6 {[%emt 0:01:41]} 26. Kb2 {[%emt 0:04:09]} Bg6 {[%emt 0:06:00]} 27. Kc3 {[%emt 0:01:39]} Nd3 {[%emt 0:04:30]} 28. Rd1 {[%emt 0:01:20]} b5 {[%emt 0:00:07]} 29. cxb5 {[%emt 0:03:07]} axb5 {[%emt 0:00:01]} 30. a3 {[%emt 0:00:10]} Kb6 {[%emt 0:18:31]} 31. g3 {[%emt 0:00:13]} Nc5 {[%emt 0:00:04]} 32. Nf1 {[%emt 0:02:52]} Bf7 {[%emt 0:02:44]} 33. Rxd4 {[%emt 0:01:41]} exd4+ {[%emt 0:00:02]} 34. Kxd4 {[%emt 0:00:07]} Nxb3+ {[%emt 0:00:02]} 35. Kc3 {[%emt 0:01:06]} Kc5 {[%emt 0:00:04]} 36. Bd1 {[%emt 0:00:43]} Nd4 {[%emt 0:00:06]} 37. Nd2 {[%emt 0:00:07]} Bd5 {[%emt 0:01:20]} 1/2-1/2

[Event "AUT-ch Open 2020"]
[Site "Graz"]
[Date "2020.02.20"]
[Round "8.31"]
[White "Ohanyan, Emin"]
[Black "Secheres, Adrian-Simion"]
[Result "1-0"]
[ECO "B35"]
[WhiteElo "2209"]
[BlackElo "2209"]
[Annotator "NA"]
[PlyCount "59"]
[EventDate "2020.02.14"]
[EventType "swiss"]
[EventCountry "AUT"]
[SourceTitle "playchess.com"]
[Source "ChessBase"]
[SourceQuality "1"]
[TimeControl "40/5400+30:1800+30"]

1. e4 {[%emt 0:00:00]} c5 {[%emt 0:00:02]} 2. Nf3 {[%emt 0:00:00]} Nc6 {[%emt 0:00:20]} 3. Nc3 {[%emt 0:00:00]} g6 {[%emt 0:00:16]} 4. d4 {[%emt 0:00:00]} cxd4 {[%emt 0:00:06]} 5. Nxd4 {[%emt 0:00:00]} Bg7 {[%emt 0:00:08]} 6. Be3 {[%emt 0:00:00]} Nf6 {[%emt 0:00:17]} 7. Bc4 {[%emt 0:00:07]} O-O {[%emt 0:00:15]} 8. Bb3 {[%emt 0:00:04]} d5 {[%emt 0:00:34]} 9. exd5 {[%emt 0:01:34]} Na5 {[%emt 0:00:08]} 10. Qd2 {[%emt 0:01:40]} a6 {[%emt 0:05:18]} 11. Bh6 {[%emt 0:18:36]} Bxh6 {[%emt 0:10:14]} 12. Qxh6 {[%emt 0:00:04]} b5 {[%emt 0:02:14]} 13. O-O-O {[%emt 0:17:37]} Bb7 {[%emt 0:07:18]} 14. Rd3 {[%emt 0:11:58]} Nxb3+ {[%emt 0:06:30]} 15. axb3 {[%emt 0:02:07]} b4 {[%emt 0:08:19]} 16. Nf5 {[%emt 0:23:34]} gxf5 {[%emt 0:00:54]} 17. Rg3+ {[%emt 0:03:18]} Ng4 {[%emt 0:00:13]} 18. Ne4 {[%emt 0:04:25]} f6 {[%emt 0:01:04]} 19. h3 {[%emt 0:00:38]} Rf7 {[%emt 0:00:59]} 20. Nc5 {[%emt 0:02:27]} Bxd5 {[%emt 0:07:53]} 21. hxg4 {[%emt 0:01:11]} f4 {[%emt 0:00:05]} 22. Qxf4 {[%emt 0:00:08]} Qa5 {[%emt 0:00:39]} 23. Na4 {[%emt 0:01:48]} Rg7 {[%emt 0:08:21]} 24. g5 {[%emt 0:01:57]} f5 {[%emt 0:00:55]} 25. Qxf5 {[%emt 0:01:19]} e6 {[%emt 0:02:06]} 26. Qd3 {[%emt 0:03:22]} Qc7 {[%emt 0:08:43]} 27. g6 {[%emt 0:01:12]} Qf4+ {[%emt 0:02:08]} 28. Kb1 {[%emt 0:00:26]} hxg6 {[%emt 0:07:25]} 29. Rxg6 {[%emt 0:00:29]} Raa7 {[%emt 0:00:15]} 30. Qh3 {[%emt 0:01:13]} 1-0

[Event "AUT-ch Open 2020"]
[Site "Graz"]
[Date "2020.02.20"]
[Round "8.33"]
[White "Kozak, Antoni"]
[Black "Matt, Fabian"]
[Result "1-0"]
[ECO "A06"]
[WhiteElo "2290"]
[BlackElo "2290"]
[Annotator "NA"]
[PlyCount "79"]
[EventDate "2020.02.14"]
[EventType "swiss"]
[EventCountry "AUT"]
[SourceTitle "playchess.com"]
[Source "ChessBase"]
[SourceQuality "1"]
[TimeControl "40/5400+30:1800+30"]

1. Nf3 {[%emt 0:00:00]} d5 {[%emt 0:00:00]} 2. e3 {[%emt 0:00:03]} Nf6 {[%emt 0:01:06]} 3. c4 {[%emt 0:00:05]} e6 {[%emt 0:01:16]} 4. b3 {[%emt 0:00:04]} c5 {[%emt 0:00:46]} 5. Bb2 {[%emt 0:02:02]} Nc6 {[%emt 0:00:26]} 6. cxd5 {[%emt 0:04:32]} exd5 {[%emt 0:00:45]} 7. d4 {[%emt 0:00:05]} cxd4 {[%emt 0:00:35]} 8. Nxd4 {[%emt 0:00:04]} Bb4+ {[%emt 0:00:28]} 9. Bc3 {[%emt 0:13:40]} Qa5 {[%emt 0:00:56]} 10. Qd2 {[%emt 0:00:18]} Bxc3 {[%emt 0:08:00]} 11. Nxc3 {[%emt 0:00:35]} Bg4 {[%emt 0:01:10]} 12. h3 {[%emt 0:02:20]} Bd7 {[%emt 0:11:13]} 13. Nxc6 {[%emt 0:09:58]} bxc6 {[%emt 0:00:27]} 14. Be2 {[%emt 0:00:36]} O-O {[%emt 0:01:27]} 15. O-O {[%emt 0:00:20]} Rac8 {[%emt 0:00:37]} 16. Rfd1 {[%emt 0:00:27]} Rfd8 {[%emt 0:10:21]} 17. Ne4 {[%emt 0:01:09]} Qxd2 {[%emt 0:04:34]} 18. Nxf6+ {[%emt 0:00:49]} gxf6 {[%emt 0:00:05]} 19. Rxd2 {[%emt 0:00:06]} a5 {[%emt 0:00:53]} 20. Rc1 {[%emt 0:00:45]} Ra8 {[%emt 0:01:28]} 21. Rd4 {[%emt 0:00:36]} Rdb8 {[%emt 0:00:22]} 22. Rf4 {[%emt 0:13:40]} f5 {[%emt 0:14:07]} 23. Bd3 {[%emt 0:06:12]} Rb4 {[%emt 0:00:49]} 24. Rf3 {[%emt 0:00:04]} Kg7 {[%emt 0:09:46]} 25. Bxf5 {[%emt 0:01:01]} Bxf5 {[%emt 0:00:02]} 26. Rxf5 {[%emt 0:00:06]} Ra6 {[%emt 0:00:05]} 27. Rg5+ {[%emt 0:02:34]} Kf6 {[%emt 0:00:11]} 28. Rg4 {[%emt 0:02:01]} Rxg4 {[%emt 0:04:34]} 29. hxg4 {[%emt 0:00:06]} Ke5 {[%emt 0:01:02]} 30. Kf1 {[%emt 0:00:56]} Kd6 {[%emt 0:00:23]} 31. Ke2 {[%emt 0:00:03]} c5 {[%emt 0:00:26]} 32. Rh1 {[%emt 0:00:47]} Ke7 {[%emt 0:02:29]} 33. Rh5 {[%emt 0:01:26]} Rd6 {[%emt 0:01:39]} 34. e4 {[%emt 0:00:27]} a4 {[%emt 0:03:07]} 35. Rxd5 {[%emt 0:00:36]} Rxd5 {[%emt 0:01:24]} 36. exd5 {[%emt 0:00:04]} axb3 {[%emt 0:00:05]} 37. axb3 {[%emt 0:00:01]} Kd6 {[%emt 0:00:05]} 38. Kd3 {[%emt 0:00:05]} Kxd5 {[%emt 0:00:04]} 39. g5 {[%emt 0:00:26]} Kc6 {[%emt 0:01:19]} 40. Ke4 {[%emt 0:00:29] Kd5+} 1-0